Cogmind - Beta 10 @@@ ROGUE MODE // 2020.09.10 @ 20:43:51 Player: Decinym Result: Destroyed by G-50 Soldier with Heavy Laser Performance ------------- Evolutions (3) 1500 Regions Visited (13) 2600 Robots Destroyed (137) 685 Value Destroyed (3571) 3571 Prototype IDs (54) 1080 Alien Tech Used (0) 0 Bonus (98) 98 TOTAL SCORE: 9534 Bonus ------- High Alert Combat Kills 37 Follower Combat Kills 712 Aligned with FarCom 300 Met Data Miner 300 Friendly Fire -1251 Cogmind --------- Core Integrity 0/700 Matter 210/300 Energy 95/100 System Corruption 6% Temperature Cool (221) Movement Flying (45) Location -6/Proximity Caves Parts ------- > --- POWER (1) -------- (None) > --- PROPULSION (2) --- Carbon-fiber Leg Cooled VTOL Module > --- UTILITY (8) ------ Experimental Targeting Computer Advanced Core Analyzer Advanced Thermal Shield > --- WEAPON (2) ------- (None) > --- INVENTORY (4) ---- Nuclear Pulse Thruster System Purifier AS-neutralizer No. 17b Makeshift Spear Peak State ------------ > --- POWER ------------ Reinforced Fission Core > --- PROPULSION ------- Improved Titanium Leg Improved Titanium Leg > --- UTILITY ---------- Improved Cooling System Medium Storage Unit Large Storage Unit High-capacity Storage Unit Experimental Targeting Computer Advanced Thermal Shield Hacking Suite Hacking Suite > --- WEAPON ----------- Advanced Beam Rifle 8R-AWN's Boregun > --- INVENTORY -------- Improved Deuterium Engine Mini Fusion Reactor Improved Titanium Leg Improved Titanium Leg Cooled VTOL Module Experimental Heat Sink Medium Storage Unit Superbattery Long-range Sensor Array Modified TNC Advanced Core Analyzer Cloak of Protection Medium Reactive Plating Hacking Suite System Purifier AS-neutralizer No. 17b Shock Rifle Lightning Gun Lightning Gun Guided EMP Blaster [Rating: 65] Favorites ----------- Power Reinforced Fission Core Engine Improved Deuterium Engine Power Core Reinforced Fission Core Reactor Mini Fusion Reactor Propulsion Carbon-fiber Leg Treads Light Treads Leg Carbon-fiber Leg Hover Unit Cooled Gravmag System Flight Unit Cooled VTOL Module Utility Medium Storage Unit Device Advanced Thermal Shield Storage Medium Storage Unit Processor Experimental Targeting Computer Hackware Hacking Suite Protection Hardened Medium Armor Plating Weapon 8R-AWN's Boregun Energy Gun Advanced Beam Rifle Energy Cannon Heavy Ion Cannon Ballistic Gun 8R-AWN's Boregun Ballistic Cannon Light Cannon Launcher Rocket Launcher Slashing Weapon Katana Build | -11 -10 -10 -9 -9 -9 -8 -8 -8 -7 -7 -7 -7 -6 ------- Run | Scr Mat Min Mat Min Exi Min Mat Sto Fac Low Low Dat Pro Slots Evolved 6 | . . . 2 . . . 2 . 2 . . . . Power . | . . . . . . . . . . . . . . Propulsion . | . . . . . . . . . . . . . . Utility 6 | . . . 2 . . . 2 . 2 . . . . Weapon . | . . . . . . . . . . . . . . Parts Attached 157 | . 7 6 10 1 22 . 27 22 27 11 14 . 10 Power 16 | . . 1 2 . 3 . . 5 . 1 2 . 2 Engine 6 | . . . 1 . . . . 1 . 1 2 . 1 Core 8 | . . 1 1 . 3 . . 3 . . . . . Reactor 2 | . . . . . . . . 1 . . . . 1 Propulsion 34 | . 1 1 5 . 6 . 3 5 7 . 3 . 3 Treads 6 | . . . 3 . 1 . . . 2 . . . . Leg 24 | . 1 1 1 . 5 . 3 4 4 . 3 . 2 Wheel . | . . . . . . . . . . . . . . Hover 1 | . . . . . . . . 1 . . . . . Flight 3 | . . . 1 . . . . . 1 . . . 1 Utility 46 | . 3 . 2 1 9 . 14 3 8 . 4 . 2 Device 17 | . . . 1 1 5 . 6 . 2 . 1 . 1 Storage 10 | . 3 . . . 3 . 3 . 1 . . . . Processor 2 | . . . . . . . . 1 . . . . 1 Hackware 5 | . . . . . . . 1 2 2 . . . . Protection 12 | . . . 1 . 1 . 4 . 3 . 3 . . Artifact . | . . . . . . . . . . . . . . Weapon 61 | . 3 4 1 . 4 . 10 9 12 10 5 . 3 Energy Gun 28 | . 1 . 1 . . . 9 4 6 2 2 . 3 Energy Cannon 5 | . . . . . 1 . . 1 . 2 1 . . Ballistic Gun 11 | . 1 . . . 2 . . 1 2 4 1 . . Ballistic Cannon 2 | . . 2 . . . . . . . . . . . Launcher 10 | . 1 1 . . 1 . 1 1 2 2 1 . . Special Weapon . | . . . . . . . . . . . . . . Impact Weapon . | . . . . . . . . . . . . . . Slashing Weapon 5 | . . 1 . . . . . 2 2 . . . . Piercing Weapon . | . . . . . . . . . . . . . . Special Melee Weapon . | . . . . . . . . . . . . . . Unidentified Prototypes 18 | . . . 1 . 6 . 2 8 1 . . . . Parts Lost 47 | . 3 3 3 . 8 1 6 1 4 2 4 . 12 Power 6 | . . 1 . . 2 . . . . 1 . . 2 Propulsion 11 | . 1 . 2 . 2 . 3 1 . . . . 2 Utility 9 | . . . . . 2 . 1 . 1 . 2 . 3 Weapon 21 | . 2 2 1 . 2 1 2 . 3 1 2 . 5 Highest Loss Streak 12 | . 3 3 1 . 6 1 3 1 2 1 2 . 12 Average Slot Usage (%) 93 | . 94 91 89 88 85 91 95 98 95 99 98 100 96 Engine 3 | . 14 6 3 11 3 . . . . 4 7 7 6 Core 5 | . . 6 6 . 6 11 9 8 7 3 . . . Treads 3 | . . . 5 22 7 . . . 5 . . . . Leg 14 | . 27 28 13 . 13 22 17 17 9 15 15 15 14 Device 10 | . . . 10 11 10 11 9 9 15 15 13 7 6 Storage 24 | . 25 28 22 22 25 33 27 27 23 23 23 23 23 Processor 3 | . . . . . . . . 1 7 7 7 7 14 Hackware 5 | . . . . . . . 8 9 9 15 8 7 6 Protection 4 | . . . 10 11 3 . 8 7 1 . 5 15 6 Energy Gun 7 | . 24 . 10 11 2 . 11 12 12 4 7 . . Energy Cannon 1 | . . . . . 1 . . . . 2 3 7 5 Ballistic Gun 4 | . 1 6 . . 9 14 3 . . 6 1 7 6 Naked Turns . | . . . . . . . . . . . . . . Heaviest Build 106 | 12 24 29 38 35 89 89 91 91 106 88 101 101 101 Greatest Support 50 | 20 20 20 40 40 50 50 50 50 40 40 40 35 35 Greatest Overweight (x) 5 | . 2 1 3 . 2 1 4 5 5 2 2 2 3 Average Overweight (x) 1 | . . . 1 . . 1 1 1 2 1 1 2 1 Largest Inventory Capacity 22 | . 12 12 12 12 22 22 22 22 22 22 22 22 22 Average Capacity 18 | . 9 12 12 12 14 22 22 22 22 22 22 22 21 Most Carried 22 | . 10 12 12 12 20 19 22 22 22 22 22 22 22 Average Carried 17 | . 7 10 10 11 11 19 21 21 21 21 21 22 20 Final Capacity 22 | 6 12 12 12 12 22 22 22 22 22 22 22 22 4 Final Carried 22 | 6 10 12 12 12 20 19 22 22 22 22 22 22 4 Class Distribution -------------------- 56% | Scavenger-Mutant 33% | Hauler-Mutant 10% | Mutant Dominant Class ---------------- Mutant | -10/Materials Mutant | -10/Mines Scavenger-Mutant | -9/Materials Scavenger-Mutant | -9/Mines Scavenger-Mutant | -9/Exiles Scavenger-Mutant | -8/Mines Scavenger-Mutant | -8/Materials Hauler-Mutant | -8/Storage Hauler-Mutant | -7/Factory Hauler-Mutant | -7/Lower Caves Scavenger-Mutant | -7/Lower Caves Scavenger-Mutant | -7/Data Miner Scavenger-Mutant | -6/Proximity Caves Resources | -11 -10 -10 -9 -9 -9 -8 -8 -8 -7 -7 -7 -7 -6 ----------- Run | Scr Mat Min Mat Min Exi Min Mat Sto Fac Low Low Dat Pro Matter Collected 3003 | 200 73 17 254 10 714 34 515 233 381 280 250 . 42 Remotely . | . . . . . . . . . . . . . . Salvage Created 5390 | . 537 16 194 . 435 . 1077 745 1237 213 570 . 366 Parts 323 | . 28 . 13 . 53 . 65 40 66 14 24 . 20 Haulers Intercepted 10 | . 2 . 1 . . . 2 5 . . . . . Recyclers Shooed 6 | . 2 . 1 . . . 1 . 2 . . . . Parts Field Recycled . | . . . . . . . . . . . . . . Retrieved Matter . | . . . . . . . . . . . . . . Parts Self-Destructed 44 | . . . . . . . . . . 11 13 . 20 Prevented 9 | . . . . . . . . . . 3 5 . 1 Kills | -11 -10 -10 -9 -9 -9 -8 -8 -8 -7 -7 -7 -7 -6 ------- Run | Scr Mat Min Mat Min Exi Min Mat Sto Fac Low Low Dat Pro Combat Hostiles Destroyed 86 | . 7 6 3 . 4 . 16 6 18 7 11 . 8 Melee 3 | . . 1 . . . . . 2 . . . . . Guns 44 | . 3 . 1 . . . 14 4 12 2 5 . 3 Cannons 11 | . . 2 . . 1 . . . . 1 3 . 4 AOE 21 | . 4 3 1 . 3 . 2 . 3 4 . . 1 Classes Destroyed 20 | . 6 1 1 . 1 . 4 1 1 . 3 . 2 Worker 9 | . . . . . . . 5 2 2 . . . . Builder 6 | . . . . . . . 4 1 1 . . . . Hauler 10 | . 2 . 1 . . . 2 5 . . . . . Recycler 7 | . 3 . . . . . 1 . 3 . . . . Minesweeper 1 | . . . . . . . . . . . 1 . . Operator 4 | . 1 . . . . . 1 . 2 . . . . Watcher 2 | . 1 . 1 . . . . . . . . . . Swarmer 21 | . 3 . 1 . . . 3 . 3 6 3 . 2 Saboteur 1 | . . . . . . . . . . . . . 1 Grunt 28 | . 4 . 1 . . . 9 3 8 . 1 . 2 Brawler 1 | . . . . . . . . 1 . . . . . Duelist 3 | . . . . . . . 1 . 1 . . . 1 Sentry 10 | . . . 1 . . . 2 2 4 . . . 1 Hunter 1 | . . . . . . . 1 . . . . . . Programmer 4 | . . . . . . . . . 2 1 1 . . Behemoth 1 | . . . . . . . . . . . . . 1 Zionite 7 | . . . . . 7 . . . . . . . . Master Thief 1 | . . . . . . . . . . . 1 . . Assembled 12 | . . 6 . . 6 . . . . . . . . Thug 4 | . . . . . . . . . . . 4 . . Mutant 1 | . . . . . . . . . . . 1 . . Best Kill Streak 6 | . 5 5 3 . 3 . 6 4 5 3 5 . 2 Combat Bots Only 5 | . 4 5 1 . 3 . 3 2 5 3 5 . 2 Max Kills in Single Turn 4 | . 3 1 1 . 2 . 2 1 4 2 1 . 1 Gunslinging . | . . . . . . . . . . . . . . Exploded 3 | . 3 1 1 . 2 . 1 . 2 2 . . 1 Melee 1 | . . 1 . . . . . 1 . . . . . Uniques/NPCs Destroyed 4 | . . . . . 2 1 . 1 . . . . . EX-HEX (-9/Exiles) 8R-AWN (-9/Exiles) EX-DEC (-9/Exiles) EX-BIN (-9/Exiles) NK-0LA (-8/Mines) 01-MTF (-8/Storage) Combat | -11 -10 -10 -9 -9 -9 -8 -8 -8 -7 -7 -7 -7 -6 -------- Run | Scr Mat Min Mat Min Exi Min Mat Sto Fac Low Low Dat Pro Damage Taken 8637 | . 401 444 456 . 1238 182 1243 399 1332 416 860 . 1666 Core 1605 | . 48 88 50 . 305 31 315 60 183 45 85 . 395 Absorbed by Shields . | . . . . . . . . . . . . . . Core Remaining (%) 44 | 100 . 45 . . . 3 . 31 . . . . . Volleys Fired 457 | . 42 15 27 . 117 6 73 21 70 24 42 . 20 Largest 2 | . 2 2 2 . 2 2 2 2 2 2 2 . 2 Hottest 160 | . 80 70 80 . 60 60 160 110 122 126 115 . 110 Shots Fired 684 | . 70 18 32 . 151 10 98 40 122 40 70 . 33 Gun 524 | . 69 2 27 . 67 10 96 40 114 30 47 . 22 Cannon 131 | . . 9 5 . 81 . . . . 6 19 . 11 Launcher 29 | . 1 7 . . 3 . 2 . 8 4 4 . . Special . | . . . . . . . . . . . . . . Kinetic 189 | . 8 11 5 . 67 10 32 6 1 20 13 . 16 Thermal 285 | . 28 . . . . . 64 34 113 16 19 . 11 Explosive 13 | . 1 7 . . 3 . 2 . . . . . . Electromagnetic 197 | . 33 . 27 . 81 . . . 8 4 38 . 6 Robot Hit Streak 21 | . 6 12 8 . 15 3 10 6 18 21 13 . 10 Robot Miss Streak 8 | . 3 3 6 . 7 2 4 8 3 5 4 . 3 Penetration Max 2 | . . . . . 1 . 2 . . 1 . . . Secondary Targets 2 | . . . . . . . . . 1 . . . 1 Max Gunslinging Chain 1 | . . . . . . . . . 1 . . . 1 Shots Hit Robots 478 | . 40 12 28 . 100 6 71 31 86 23 54 . 27 Core Hits 282 | . 23 15 9 . 43 1 49 19 43 21 27 . 32 Critical Hits 52 | . . . . . 26 4 19 1 1 1 . . . Critical Kills 17 | . . . . . 6 . 9 1 1 . . . . Critical Parts Destroyed 26 | . . . . . 13 3 9 . . 1 . . . Melee Attacks 20 | . . 1 . . . . . 17 2 . . . . Impact . | . . . . . . . . . . . . . . Slashing 20 | . . 1 . . . . . 17 2 . . . . Piercing . | . . . . . . . . . . . . . . Sneak Attacks 7 | . . . . . . . . 7 . . . . . Combat Hostiles . | . . . . . . . . . . . . . . Follow-up Attacks . | . . . . . . . . . . . . . . Damage Inflicted 10983 | . 764 453 547 . 1501 66 1806 1241 2287 529 1146 . 643 Guns 6726 | . 475 12 359 . 823 66 1574 381 1737 314 614 . 371 Cannons 928 | . . 90 18 . 192 . . . . 59 297 . 272 Explosions 2390 | . 289 315 170 . 486 . 232 . 507 156 235 . . Melee 939 | . . 36 . . . . . 860 43 . . . . Ramming . | . . . . . . . . . . . . . . Kinetic 2297 | . 52 102 18 . 823 66 616 48 22 169 109 . 272 Thermal 4367 | . 274 . 170 . . . 958 333 1859 204 297 . 272 Explosive 1176 | . 143 315 . . 486 . 232 . . . . . . Electromagnetic 2204 | . 295 . 359 . 192 . . . 363 156 740 . 99 Impact . | . . . . . . . . . . . . . . Slashing 939 | . . 36 . . . . . 860 43 . . . . Piercing . | . . . . . . . . . . . . . . Highest Corruption 6 | . . 2 4 4 6 . 2 . 2 2 5 5 6 Average Corruption 2 | . . 2 3 4 4 . 1 . 1 2 2 5 5 Corruption Purged 8 | . . . . . 6 . 2 . . . . . . Effects 113 | . . 3 9 2 52 . . . 8 10 15 1 13 Message Errors 22 | . . . . 1 9 . . . 4 1 5 . 2 Matter Fused 19 | . . . 2 . 15 . . . . . . . 2 Heat Flow Errors 13 | . . 2 . 1 5 . . . . 3 1 . 1 Energy Discharges 17 | . . . 3 . 6 . . . 2 2 2 1 1 Parts Rejected 4 | . . . 1 . 2 . . . . . . . 1 Data Loss (minor) 11 | . . . . . 4 . . . 1 1 4 . 1 Misfires 5 | . . . . . 3 . . . . . . . 2 Targeting Errors 18 | . . 1 3 . 7 . . . . 3 2 . 2 Weapon Failures 4 | . . . . . 1 . . . 1 . 1 . 1 Overload Shots . | . . . . . . . . . . . . . . Overflow Damage 194 | . 50 27 . . 16 . . 56 . . 44 . 1 Projectiles 62 | . . 8 . . 10 . . . . . 43 . 1 Explosions 76 | . 50 19 . . 6 . . . . . 1 . . Melee 56 | . . . . . . . . 56 . . . . . Knockbacks 1 | . . 1 . . . . . . . . . . . Impact . | . . . . . . . . . . . . . . Kinetic 1 | . . 1 . . . . . . . . . . . Secondary . | . . . . . . . . . . . . . . Self-Inflicted Damage 309 | . 96 160 53 . . . . . . . . . . Shots 11 | . 3 6 2 . . . . . . . . . . Rammed . | . . . . . . . . . . . . . . Targets Rammed . | . . . . . . . . . . . . . . Kicked . | . . . . . . . . . . . . . . Crushed . | . . . . . . . . . . . . . . Highest Temperature 283 | . 130 170 3 87 255 . 199 183 199 204 91 . 283 Average Temperature 76 | . 37 51 3 57 82 . 98 74 98 101 14 . 76 Received Heat Transfer 2404 | . 141 . 93 . . . 423 207 546 . 301 . 693 Siege Activations . | . . . . . . . . . . . . . . Robots Corrupted 7 | . 2 . 1 . . . . . 1 . 3 . . Combat Hostiles 5 | . . . 1 . . . . . 1 . 3 . . Parts Fried 14 | . 5 . 1 . . . . . 1 1 6 . . Impact Corruptions . | . . . . . . . . . . . . . . Robots Melted 2 | . . . . . . . . . 2 . . . . Combat Hostiles 2 | . . . . . . . . . 2 . . . . Parts Melted 13 | . . . . . . . 3 1 9 . . . . Heat Transferred 8078 | . 500 . 250 . . . 2207 666 3345 333 407 . 370 Parts Sabotaged . | . . . . . . . . . . . . . . Parts Stolen 4 | . . . . . . . . . . 3 1 . . Parts Stripped . | . . . . . . . . . . . . . . Power Chain Reactions 7 | . 4 . 2 . . . . . 1 . . . . Missiles Intercepted . | . . . . . . . . . . . . . . Alert | -11 -10 -10 -9 -9 -9 -8 -8 -8 -7 -7 -7 -7 -6 ------- Run | Scr Mat Min Mat Min Exi Min Mat Sto Fac Low Low Dat Pro Peak Influence 550 | . 217 15 122 . . 120 359 550 439 . . . . Initial 249 | . . 6 . . . . 42 111 249 . . . . Average 200 | . 83 3 61 . . 106 181 213 320 . . . . Maximum Alert Level 2 | . 1 . . . . . 1 2 2 . . . . Low Security (%) 48 | . 94 100 100 100 . 100 51 60 . . . . . Level 1 45 | . 5 . . . . . 48 12 98 . . . . Level 2 5 | . . . . . . . . 26 . . . . . Level 3 . | . . . . . . . . . . . . . . Level 4 . | . . . . . . . . . . . . . . Level 5 . | . . . . . . . . . . . . . . High Security . | . . . . . . . . . . . . . . Max Security . | . . . . . . . . . . . . . . Squads Dispatched 14 | . 1 . . . . . 4 4 4 . . . 1 Investigation 2 | . . . . . . . 1 . 1 . . . . Extermination 2 | . . . . . . . . . 2 . . . . Reinforcement 6 | . 1 . . . . . 3 1 1 . . . . Assault 2 | . . . . . . . . 1 . . . . 1 Garrison 2 | . . . . . . . . 2 . . . . . Intercept . | . . . . . . . . . . . . . . Construction Impeded 1 | . . . . . . . 1 . . . . . . Haulers Reinforced . | . . . . . . . . . . . . . . Stealth | -11 -10 -10 -9 -9 -9 -8 -8 -8 -7 -7 -7 -7 -6 --------- Run | Scr Mat Min Mat Min Exi Min Mat Sto Fac Low Low Dat Pro Distress Signals 4 | . . . 1 . . . 1 1 1 . . . . Communications Jammed . | . . . . . . . . . . . . . . Distress Signals . | . . . . . . . . . . . . . . Times Spotted 228 | . 11 6 14 . 53 5 25 30 29 12 22 . 21 Peak Tracking Total 7 | . 3 3 5 . 7 5 4 5 5 4 5 . 7 Tactical Retreats 32 | . . . 1 . 20 . 1 . 2 2 6 . . Traps | -11 -10 -10 -9 -9 -9 -8 -8 -8 -7 -7 -7 -7 -6 ------- Run | Scr Mat Min Mat Min Exi Min Mat Sto Fac Low Low Dat Pro Traps Triggered 9 | . 1 . 3 . . . 1 . 4 . . . . Indirectly . | . . . . . . . . . . . . . . Trap Hack Attempts . | . . . . . . . . . . . . . . Triggered . | . . . . . . . . . . . . . . Disarmed . | . . . . . . . . . . . . . . Reprogrammed . | . . . . . . . . . . . . . . Reused 4 | . . . . . 2 . . . . . . . 2 Traps Extracted . | . . . . . . . . . . . . . . Installed 5 | . . . . . 3 . . . . . . . 2 Triggered 3 | . 1 . . . . . . . . . . . 2 Machines | -11 -10 -10 -9 -9 -9 -8 -8 -8 -7 -7 -7 -7 -6 ---------- Run | Scr Mat Min Mat Min Exi Min Mat Sto Fac Low Low Dat Pro Machines Disabled 22 | . . . . . 12 . 3 5 2 . . . . Max in Single Turn 2 | . . . . . 2 . 1 1 1 . . . . Garrison Access 1 | . . . . . . . . 1 . . . . . Machines Sabotaged . | . . . . . . . . . . . . . . Garrisons Compromised . | . . . . . . . . . . . . . . Overloaded Fab Kills . | . . . . . . . . . . . . . . Fab Network Shutdowns . | . . . . . . . . . . . . . . Hacking | -11 -10 -10 -9 -9 -9 -8 -8 -8 -7 -7 -7 -7 -6 --------- Run | Scr Mat Min Mat Min Exi Min Mat Sto Fac Low Low Dat Pro Machines Accessed 32 | . 2 1 1 . 2 . 5 11 6 . . 4 . Terminals 20 | . 2 . 1 . . . 3 10 4 . . . . Fabricators . | . . . . . . . . . . . . . . Repair Stations 3 | . . . . . . . 1 1 1 . . . . Recycling Units . | . . . . . . . . . . . . . . Scanalyzers 2 | . . . . . . . 1 . 1 . . . . Garrison Access . | . . . . . . . . . . . . . . Total Hacks 122 | . 5 1 4 . 6 . 19 40 17 . . 30 . Successful 76 | . 3 1 2 . 6 . 11 17 6 . . 30 . Failed 46 | . 2 . 2 . . . 8 23 11 . . . . Catastrophic 3 | . . . . . . . 1 2 . . . . . Database Lockouts . | . . . . . . . . . . . . . . Manual 46 | . 4 . 1 . 1 . 13 23 4 . . . . Terminals 65 | . 5 . 4 . . . 13 33 10 . . . . Fabricators . | . . . . . . . . . . . . . . Repair Stations 12 | . . . . . . . 3 7 2 . . . . Recycling Units . | . . . . . . . . . . . . . . Scanalyzers 8 | . . . . . . . 3 . 5 . . . . Garrison Access . | . . . . . . . . . . . . . . Terminal Hacks 56 | . 2 1 2 . 6 . 5 8 2 . . 30 . Record 16 | . . . . . 5 . . . . . . 11 . Part Schematic 13 | . 1 . . . . . 1 2 . . . 9 . Robot Schematic 7 | . . . . . . . . . . . . 7 . Prototype ID Bank 3 | . . . . . . . . . . . . 3 . Open Door 3 | . . 1 . . . . . 2 . . . . . Level Access Points 1 | . . . . . . . . 1 . . . . . Branch Access Points 4 | . 1 . 1 . . . 1 . 1 . . . . Terminal Index 1 | . . . 1 . . . . . . . . . . Alert Level 1 | . . . . . . . . 1 . . . . . Unreport Threat 2 | . . . . . . . . 2 . . . . . Recall Investigation 1 | . . . . . . . 1 . . . . . . Recall Reinforcements 1 | . . . . . . . 1 . . . . . . Zone Layout 2 | . . . . . . . 1 . 1 . . . . EX-Prototype ID Bank 1 | . . . . . 1 . . . . . . . . Fabricator Hacks . | . . . . . . . . . . . . . . Repair Station Hacks 8 | . . . . . . . 2 6 . . . . . Scan Component 4 | . . . . . . . 1 3 . . . . . Repair 4 | . . . . . . . 1 3 . . . . . Recycling Unit Hacks . | . . . . . . . . . . . . . . Scanalyzer 6 | . . . . . . . 2 . 4 . . . . Insert Component 3 | . . . . . . . 1 . 2 . . . . Analyze 3 | . . . . . . . 1 . 2 . . . . Garrison Access Hacks . | . . . . . . . . . . . . . . Unauthorized Hacks 6 | . 1 . . . . . 2 3 . . . . . Terminals 6 | . 1 . . . . . 2 3 . . . . . Botnet 6 | . 1 . . . . . 2 3 . . . . . Fabricators . | . . . . . . . . . . . . . . Repair Stations . | . . . . . . . . . . . . . . Recycling Units . | . . . . . . . . . . . . . . Scanalyzers . | . . . . . . . . . . . . . . Garrison Access . | . . . . . . . . . . . . . . Data Cores Recovered . | . . . . . . . . . . . . . . Used . | . . . . . . . . . . . . . . Hacking Detections 24 | . 2 . 1 . . . 5 10 6 . . . . Full Trace Events 4 | . . . . . . . 1 2 1 . . . . Feedback Events . | . . . . . . . . . . . . . . Feedback Blocked . | . . . . . . . . . . . . . . Robot Schematics Acquired 7 | . . . . . . . . . . . . 7 . Robots Built . | . . . . . . . . . . . . . . Matter . | . . . . . . . . . . . . . . Time . | . . . . . . . . . . . . . . Total Robot Build Rating . | . . . . . . . . . . . . . . Part Schematics Acquired 16 | . 1 . . . . . 2 2 2 . . 9 . Parts Built . | . . . . . . . . . . . . . . Matter . | . . . . . . . . . . . . . . Time . | . . . . . . . . . . . . . . Total Part Build Rating . | . . . . . . . . . . . . . . Parts Repaired 4 | . . . . . . . 1 3 . . . . . Time 251 | . . . . . . . 89 162 . . . . . Parts Recycled . | . . . . . . . . . . . . . . Recycled Matter . | . . . . . . . . . . . . . . Retrieved Matter . | . . . . . . . . . . . . . . Retrieved Components . | . . . . . . . . . . . . . . Parts Scanalyzed 3 | . . . . . . . 1 . 2 . . . . Part Schematics Acquired 3 | . . . . . . . 1 . 2 . . . . Parts Damaged . | . . . . . . . . . . . . . . Bothacking | -11 -10 -10 -9 -9 -9 -8 -8 -8 -7 -7 -7 -7 -6 ------------ Run | Scr Mat Min Mat Min Exi Min Mat Sto Fac Low Low Dat Pro Used RIF Installer . | . . . . . . . . . . . . . . Robots Hacked . | . . . . . . . . . . . . . . Non-combat . | . . . . . . . . . . . . . . Combat . | . . . . . . . . . . . . . . Robot Hacks Applied . | . . . . . . . . . . . . . . Relay Couplers Released 2 | . . . . . . . . 2 . . . . . Machine Destruction 2 | . . . . . . . . 2 . . . . . Robots Rewired 1 | . . . . . . . . . . . 1 . . Allies Hacked . | . . . . . . . . . . . . . . Hacks Repelled . | . . . . . . . . . . . . . . Allies | -11 -10 -10 -9 -9 -9 -8 -8 -8 -7 -7 -7 -7 -6 -------- Run | Scr Mat Min Mat Min Exi Min Mat Sto Fac Low Low Dat Pro Total Allies 7 | . . . . 3 . . . 2 . . 1 . 1 Largest Group 3 | . . . . 3 3 . . 2 . . 1 . 1 Highest-Rated Group 110 | . . . . 40 40 . . 110 . . 26 . 94 Highest-Rated Ally 99 | . . . . 16 16 . . 99 . . 26 . 94 Total Orders 4 | . . . . . 4 . . . . . . . . STAY 3 | . . . . . 3 . . . . . . . . FOLLOW 1 | . . . . . 1 . . . . . . . . Ally Attacks 592 | . . . . . 524 19 . 41 . . 1 . 7 Total Damage 4346 | . . . . . 1219 848 . 1976 . . 27 . 276 Kills 32 | . . . . . 3 5 . 21 . . 1 . 2 Allies Corrupted . | . . . . . . . . . . . . . . Allies Melted . | . . . . . . . . . . . . . . Turrets Deployed 1 | . . . . . . 1 . . . . . . . Intel | -11 -10 -10 -9 -9 -9 -8 -8 -8 -7 -7 -7 -7 -6 ------- Run | Scr Mat Min Mat Min Exi Min Mat Sto Fac Low Low Dat Pro Robot Analysis Total . | . . . . . . . . . . . . . . Derelict Logs Recovered 4 | . . . . 2 . . . . . . 2 . . Drone Launches . | . . . . . . . . . . . . . . Drone Recoveries . | . . . . . . . . . . . . . . Exploration | -11 -10 -10 -9 -9 -9 -8 -8 -8 -7 -7 -7 -7 -6 ------------- Run | Scr Mat Min Mat Min Exi Min Mat Sto Fac Low Low Dat Pro Turns Passed 10666 | . 431 351 412 155 2835 140 999 1095 1884 845 1021 156 342 Spaces Moved 4668 | 1 219 201 184 94 1123 78 420 442 822 414 437 85 148 Core . | . . . . . . . . . . . . . . Treads 885 | . . . 48 94 461 . . . 282 . . . . Legs 3781 | 1 219 201 136 . 662 78 420 442 540 414 437 85 146 Wheels . | . . . . . . . . . . . . . . Hover . | . . . . . . . . . . . . . . Flight 2 | . . . . . . . . . . . . . 2 Fastest Speed 45 | 120 120 120 150 160 120 160 160 150 180 160 160 185 45 Average Speed 170 | 120 130 149 171 160 154 160 163 175 192 180 185 185 181 Slowest Speed 270 | 120 180 150 210 160 180 160 260 270 270 190 190 185 220 Overloaded Moves . | . . . . . . . . . . . . . . Propulsion Burnouts . | . . . . . . . . . . . . . . Robots Hopped . | . . . . . . . . . . . . . . Cave-ins Triggered . | . . . . . . . . . . . . . . Exploration Rate (%) 38 | 2 33 38 22 13 90 17 30 58 19 59 54 70 31 Regions Visited 13 Branch Regions 9 Pre-discovered Areas 3 | . . . . 1 1 . . . . . . 1 . Known Exits Taken 5 | . 1 . 1 . . . 1 1 1 . . . . Unknown Exits Taken 8 | 1 . 1 . 1 1 1 . . . 1 1 1 . Scrap Searched 11 | . . 3 . 1 . . . . . 4 2 . 1 Spaces Dug . | . . . . . . . . . . . . . . Terrain Destroyed 150 | . 28 55 3 . 36 3 18 . 3 4 . . . Melee . | . . . . . . . . . . . . . . Projectile 28 | . . . . . 14 3 7 . . 4 . . . AOE 122 | . 28 55 3 . 22 . 11 . 3 . . . . Terrain Rammed . | . . . . . . . . . . . . . . Walls Destroyed . | . . . . . . . . . . . . . . Machines Disabled . | . . . . . . . . . . . . . . Actions | -11 -10 -10 -9 -9 -9 -8 -8 -8 -7 -7 -7 -7 -6 --------- Run | Scr Mat Min Mat Min Exi Min Mat Sto Fac Low Low Dat Pro Total 6692 | . 294 233 249 99 2076 84 623 700 1006 474 578 84 192 Wait 1166 | . 22 . 17 1 777 . 79 165 39 . 61 . 5 Move 4655 | . 218 200 183 93 1122 77 419 441 821 413 436 84 148 Hop . | . . . . . . . . . . . . . . Pick Up 95 | . 4 7 6 2 17 . 9 11 14 14 11 . . Fast Attach 73 | . 2 2 4 . 16 . 14 15 15 3 2 . . Attach 42 | . 1 3 5 . 4 . 4 1 6 4 5 . 9 Detach 9 | . . 1 1 . 2 . 1 1 3 . . . . Swap 43 | . 4 1 1 1 2 . 10 6 6 4 7 . 1 Drop 115 | . 1 3 5 2 16 1 14 22 24 12 8 . 7 Fire 457 | . 42 15 27 . 117 6 73 21 70 24 42 . 20 Melee 20 | . . 1 . . . . . 17 2 . . . . Ram . | . . . . . . . . . . . . . . Kick . | . . . . . . . . . . . . . . Crush . | . . . . . . . . . . . . . . Escape Stasis 6 | . . . . . . . . . 6 . . . . Rewire 6 | . . . . . . . . . . . 6 . . Trap 5 | . . . . . 3 . . . . . . . 2 Miscellaneous . | . . . . . . . . . . . . . . Route ------- -11/Scrapyard -10/Materials -10/Mines -9/Materials (discovered 2 exits: *Min x2) -9/Mines -9/Exiles (discovered 2 exits: [*Min x2]) -8/Mines -8/Materials (discovered 3 exits: Fac / *Sto x2) -8/Storage -7/Factory (discovered 2 exits: *Low x2) -7/Lower Caves -7/Lower Caves (discovered 2 exits: [*Fac] / *Dat) -7/Data Miner -6/Proximity Caves History --------- Turn | Location | Event 1 | -11/Scrapyard | Discovered new exit (range 0) 1 | -11/Scrapyard | Entered Materials 13 | -10/Materials | Identified exit to Mines 304 | -10/Materials | Build established: Mutant 416 | -10/Materials | Lost 3 parts (1n2w) 432 | -10/Materials | Entered Mines 438 | -10/Mines | Met a Derelict bent on vengeance 489 | -10/Mines | Met a Derelict who couldn't figure out how to use a Trap Extractor 569 | -10/Mines | Assembled infested the area 626 | -10/Mines | Core integrity fell below 50% 644 | -10/Mines | Lost 3 parts (1p2w) 711 | -10/Mines | Found a hidden stash of uninstalled traps 767 | -10/Mines | Discovered new exit (range 12) 783 | -10/Mines | Entered Materials 783 | -9/Materials | Evolved 2 slots: Utility x2 999 | -9/Materials | Identified exit to Mines 1195 | -9/Materials | Entered Mines 1202 | -9/Mines | Received a Rocket Launcher from a helpful Derelict 1261 | -9/Mines | Assisted by bots powering up and referring to "LRC-V3" 1283 | -9/Mines | Build established: Scavenger-Mutant 1301 | -9/Mines | Learned location of Zion (-6) 1339 | -9/Mines | Deemed a non-threat by the Exiles lab entrance 1341 | -9/Mines | Discovered new exit (range 5) 1350 | -9/Mines | Entered Exiles 1350 | -9/Exiles | Accompanied by 3 allies 1374 | -9/Exiles | Discovered new exit (range 15) 1390 | -9/Exiles | Met 8R-AWN 1419 | -9/Exiles | Met EX-HEX 1467 | -9/Exiles | Met EX-BIN 1491 | -9/Exiles | Aligned with FarCom system 1493 | -9/Exiles | Given EX-Vault access code 1667 | -9/Exiles | Opened EX-Vault 1704 | -9/Exiles | Warned to stay clear of 0b10 Research branches 1898 | -9/Exiles | Attacked by the Exiles 1912 | -9/Exiles | Allies destroyed EX-HEX 2291 | -9/Exiles | Core integrity fell below 50% 2319 | -9/Exiles | Lost 6 parts (1p2n2u1w) 2903 | -9/Exiles | Allies destroyed 8R-AWN 2919 | -9/Exiles | Found Prototype Protection 2919 | -9/Exiles | Identified 8R-AWN's Armor/EX 2923 | -9/Exiles | Found Prototype Device 2923 | -9/Exiles | Identified AS-neutralizer No. 17b 2931 | -9/Exiles | Found Prototype Ballistic Gun 2931 | -9/Exiles | Identified 8R-AWN's Boregun 2934 | -9/Exiles | Found 8R-AWN's Boregun 2995 | -9/Exiles | Core integrity fell below 20% 3091 | -9/Exiles | Destroyed EX-DEC 3120 | -9/Exiles | Destroyed EX-BIN 3130 | -9/Exiles | Found Prototype Device 3130 | -9/Exiles | Identified System Purifier 3286 | -9/Exiles | Found Deploy-a-Sentry 3573 | -9/Exiles | Found Superbattery 3575 | -9/Exiles | Found Cloak of Protection 3580 | -9/Exiles | Found Modified TNC 4162 | -9/Exiles | Discovered new exit (range 14) 4185 | -9/Exiles | Stole four prototypes: Superbattery, Modified TNC, Cloak of Protection, Deploy-a-Sentry 4185 | -9/Exiles | Entered Mines 4187 | -8/Mines | DAS Turret deployed 4221 | -8/Mines | NK-0LA came to Exiles' defense 4230 | -8/Mines | Allies destroyed NK-0LA 4320 | -8/Mines | Discovered new exit (range 3) 4325 | -8/Mines | Entered Materials 4325 | -8/Materials | Evolved 2 slots: Utility x2 4326 | -8/Materials | Identified exit to Factory 4557 | -8/Materials | Repaired Exp. Heat Sink 4818 | -8/Materials | Identified exit to Storage 4946 | -8/Materials | Lost 3 parts (1n2w) 4963 | -8/Materials | Core integrity fell below 50% 5324 | -8/Materials | Entered Storage 5442 | -8/Storage | Met 01-MTF 5490 | -8/Storage | Build established: Hauler-Mutant 5731 | -8/Storage | Repaired Rnf. Fission Core 5770 | -8/Storage | Repaired Carbon-fiber Leg 5840 | -8/Storage | Repaired Adv. Core Analyzer 6004 | -8/Storage | Garrison activated, responded to threat 6286 | -8/Storage | Found Prototype Processor 6286 | -8/Storage | Identified Exp. Targeting Computer 6375 | -8/Storage | Destroyed 01-MTF 6419 | -8/Storage | Entered Factory 6419 | -7/Factory | Evolved 2 slots: Utility x2 7974 | -7/Factory | Identified exit to Lower Caves 8303 | -7/Factory | Entered Lower Caves 8761 | -7/Lower Caves | Spotted 6L-VUG(f) 8762 | -7/Lower Caves | Encountered a Master Thief 8765 | -7/Lower Caves | Spotted US-JK4(f) 8765 | -7/Lower Caves | Spotted LM-9VN(f) 8766 | -7/Lower Caves | Encountered a Master Thief 8766 | -7/Lower Caves | Encountered a Master Thief 8767 | -7/Lower Caves | Modified TNC stolen by Master Thief 8768 | -7/Lower Caves | Cloak of Protection stolen by Master Thief 8776 | -7/Lower Caves | Superbattery stolen by Master Thief 9061 | -7/Lower Caves | Spotted Z8-TK2(f) 9063 | -7/Lower Caves | Encountered a Master Thief 9136 | -7/Lower Caves | Discovered new exit (range 7) 9148 | -7/Lower Caves | Entered another Lower Caves area 9148 | -7/Lower Caves | Discovered new exit (range 13) 9240 | -7/Lower Caves | Attacked by a faux Warlord 9513 | -7/Lower Caves | Encountered a Warlord checkpoint 9531 | -7/Lower Caves | Learned 12 Factory zone layouts 9646 | -7/Lower Caves | Build established: Scavenger-Mutant 9847 | -7/Lower Caves | Learned Factory trap positions 10031 | -7/Lower Caves | Spotted TI-BDR(f) 10032 | -7/Lower Caves | Encountered a Master Thief 10036 | -7/Lower Caves | Adv. Core Analyzer stolen by Master Thief 10038 | -7/Lower Caves | Destroyed TI-BDR(f) 10102 | -7/Lower Caves | Discovered new exit (range 14) 10169 | -7/Lower Caves | Entered Data Miner 10169 | -7/Data Miner | Discovered new exit (range 6) 10205 | -7/Data Miner | Met Data Miner 10242 | -7/Data Miner | Learned location of Section 7 (-2) 10242 | -7/Data Miner | Acquired the access code to Warlord's prototype stash 10273 | -7/Data Miner | Received God Mode back door access code from Data Miner 10325 | -7/Data Miner | Entered Proximity Caves 10327 | -6/Proximity Caves | Spotted B-75 Beast 10343 | -6/Proximity Caves | Core integrity fell below 50% 10367 | -6/Proximity Caves | Destroyed B-75 Beast 10558 | -6/Proximity Caves | Escorted by Enhanced Grunt 10591 | -6/Proximity Caves | Attracted the attention of an 0b10 outpost 10639 | -6/Proximity Caves | Core integrity fell below 20% 10667 | -6/Proximity Caves | Destroyed by G-50 Soldier with Heavy Laser Last Messages --------------- 10651_ E-15 Imp unfolds itself. 10652_ Shock Rifle destroyed. 10655_ System corrupted: Imp. Titanium Leg rejected. 10656_ Hacking Suite destroyed. 10657_ E-15 Imp destroyed. 10657_ Switching to secondary target: G-67 Veteran. 10658_ G-67 Veteran heat spikes uncontrollably. 10658_ G-67 Veteran overheating. 10660_ G-67 Veteran heat short circuits Flexi-carbon Leg. 10660_ G-50 Soldier destroyed. 10661_ Lightning Gun destroyed. 10662_ G-67 Veteran overheating. 10663_ Lightning Gun destroyed. 10664_ Dropped Hcp. Storage Unit. 10665_ Dropped Lrg. Storage Unit. 10665_ Dropped Med. Storage Unit. 10666_ Dropped Mni. Fusion Reactor. 10667_ Propulsion Shielding fries itself beyond repair. 10667_ G-67 Veteran overheating. 10667_ G-50 Soldier reactivates. Map ----- +----------------------------------------------------+ | ?????????????????????????????????????????????????? | | ?????????????????????????????????????????????????? | | ?????????????????????????????????????????????????? | | ?????????????????????????????????????????????????? | | ?????????????????????????????????????????????????? | | ?????????????????????????????????????????????????? | | ?????????????????????????????????????????????????? | | ?????????????????????????????????????????????????? | | ?????????????######??????????????????????????????? | | ??????#####?## ???????????????????????????????? | | ?????## ### #???????????????????????????????? | | ??#### ## #???????????????????????????????? | | ??? ##??????????????????????????????? | | ###? ##?????????????????????????????? | | [%#?# ##???####?????????????????????? | | # ### #?# #??? ##????????????????????? | | # #?# #??? #????????????????????? | | # ### #???? ##???????????????????? | | #### ##??? ##??????????????????? | | ???# ## ##??# ##?????????????????? | | ???# ## ##?# #?????????????????? | | ???# ## ### #??????????????????? | | ???## ## #???????????????????? | | ????#### ## ##???????????????????? | | ???????#### ### ##????????????????????? | | ??????????## ### ## @!#?????????????????????? | | ???????????# ###= ## !!##????????????????????? | | ??????????# !% % % !!=###??????????????????? | | ??????????? ####+#]#%% !% !*##?????????????????? | | ???????????## #??# "# # *! #?????????????????? | | ????????????? ??# ; #%%[! #?????????????????? | | ????????????? ??+ ";% %% #?????????????????? | | ????????????? ?+ ; b = #?????????????????? | | ????????????? ??# " #?????????????????? | | ?????????????????# " #?????????????????? | | ?????????? #######" % ##?????????????????? | | ???????? ##??????????????????? | | ???????? ### ;???????????????????? | | ?????????? ??????# ggggg;#???????????????????? | | ????????????????????# %%;;; ???????????????????? | | ???????????????????# ;## #???????????????????? | | ???????????????????# #??#????????????????????? | | ???????????????????# ???????????????????????? | | ???????????????????## ???????????????????????? | | ????????????????????#"# ???????????????????????? | | ????????????????????##### ??????????????????????? | | ????????????????????????? ??????????????????????? | | ????????????????????????? ??????????????????????? | | ????????????????????????? ??????????????????????? | | ????????????????????????? ?????????????????????? | +----------------------------------------------------+ Best States ------------- Heat Dissipation 71 Coolant Potential 65 Energy Generation 27 Energy Capacity 310 Matter Stores 300 Matter Capacity 300 Sight Range 16 Terrain Scan Density 10 Armor Coverage 1000 Resistance: KI 30 Resistance: TH 30 Resistance: EX 90 Resistance: EM 15 Core Shielding 20 Evasion (%) 40 Targeting Accuracy 12 Core Analysis 10 Recoil Reduction 2 Offensive Hacking 20 Item Schematics ----------------- Lrg. Storage Unit | -10/Materials | Hacked Hacking Suite | -8/Materials | Hacked Exp. Heat Sink | -8/Materials | Scanalyzed Med. Storage Unit | -8/Storage | Hacked System Shield | -8/Storage | Hacked Mni. Fusion Reactor | -7/Factory | Scanalyzed Cld. VTOL Module | -7/Factory | Scanalyzed Combat Drone Bay | -7/Data Miner | Free Lgt. Regenerative Plating | -7/Data Miner | Free Exp. Cesium-ion Thruster | -7/Data Miner | Free Exp. Sensor Array | -7/Data Miner | Free Exp. Transmission Jammer | -7/Data Miner | Free Exp. ECM Suite | -7/Data Miner | Free Mni. Smartbomb Launcher | -7/Data Miner | Free Plasma Sword | -7/Data Miner | Free Kinetic Spear | -7/Data Miner | Free Robot Schematics ------------------ S-27 Virus | -7/Data Miner | Free G-50 Soldier | -7/Data Miner | Free G-67 Veteran | -7/Data Miner | Free L-41 Fighter | -7/Data Miner | Free X-72 Disruptor | -7/Data Miner | Free I-36 Angel | -7/Data Miner | Free I-47 Archangel | -7/Data Miner | Free Fabricated ------------ Nothing Alien Tech Used ----------------- None Achievements -------------- None Challenges ------------ None Game ------ Seed SigixResetMaul Manual? 0 Play Time 01:28:01 Cumulative 332.4 hours Start 2020.09.09 @ 22:26:23 End 2020.09.10 @ 20:43:51 Sessions 3 Manual Loads 0 Difficulty Rogue Special Mode None Game No. 366 Rogue 366 Adventurer 0 Explorer 0 Win Type - Total 29 Types 17/3/2/1/2/1/3/0/0 Lore% 91 Gallery% 88 Achievement% 79 Wizard Run 0 Options --------- ASCII 0 Keyboard 0 Movement Arrows Keybinds 0 Fullscreen 2 Font 18/SmallcapsGlow Map View 76x50 Tactical HUD 1 Map Filters NONE Filters NONE Steam 1 RUN: 3426779a-c111-45f1-9a8a-9f17c129826c